bitfinex/quotes_ETHUSD_20250715
["timestamp","ask_amount","ask_price","bid_price","bid_amount"]
[1752610157041,0.04,3040.9,3040.8,3.28860826]
[1752610157238,0.04,3040.9,3040.8,8.77760826]
[1752610157429,0.04,3040.9,3040.8,5.489]
[1752610158302,0.04,3040.9,3040.8,5.488]
[1752610158303,3.79300011,3040.9,3040.8,5.488]
[1752610158507,6.28864745,3040.8,3040.0,0.24090722]
[1752610158725,3.28888466,3040.6,3040.5,0.164]
[1752610158936,6.28888466,3040.6,3038.7,3.29082386]
[1752610159244,2.33722232,3040.5,3039.9,0.164]
[1752610159448,3.28946947,3040.1,3039.9,0.164]
[1752610159747,3.28926243,3040.2,3039.9,0.164]
[1752610159931,3.28947368,3040.0,3039.9,0.164]
[1752610160129,3.75391391,3040.1,3039.9,0.164]
[1752610160331,0.4645,3040.1,3039.9,0.164]
[1752610160533,3.0,3040.2,3039.9,0.5488]
[1752610160851,3.28927049,3040.2,3040.0,0.164]
[1752610161348,6.28919489,3040.3,3040.1,5.324]
[1752610161846,6.75369489,3040.3,3040.1,5.324]
[1752610162847,6.75369489,3040.3,3040.0,0.164]
[1752610162848,0.4645,3040.3,3040.0,0.164]
[1752610163005,6.75379993,3040.2,3040.1,5.323]
[1752610164420,3.4645,3040.2,3040.1,5.323]
[1752610164653,3.0,3040.2,3040.1,5.323]
[1752610164865,0.7578,3040.8,3040.1,9.61943304]
[1752610165069,0.04,3040.9,3040.1,6.3301]
[1752610165356,0.04,3040.9,3040.8,3.28860826]
[1752610165533,0.04,3040.9,3040.8,8.61160826]
[1752610166311,0.04,3040.9,3040.8,9.0421363]
[1752610166517,0.04,3040.9,3040.8,9.5005363]
[1752610170020,0.04,3040.9,3040.8,5.75152804]
[1752610170227,0.04,3040.9,3040.8,8.60960826]
[1752610171141,0.04,3040.9,3040.7,0.164]
[1752610171467,0.04,3040.9,3040.8,5.32]
[1752610171831,3.28860826,3040.8,3040.7,0.164]
[1752610172163,3.28860826,3040.8,3040.7,5.484]
[1752610172379,3.79305034,3040.9,3040.7,5.484]
[1752610172527,3.79305034,3040.9,3040.7,0.164]
[1752610172528,3.28860826,3040.8,3040.7,0.164]
[1752610172858,0.4645,3040.8,3040.7,5.484]
[1752610173059,3.75310826,3040.8,3040.7,5.484]
[1752610174637,3.75310826,3040.8,3040.7,0.164]
[1752610175460,3.04,3040.9,3040.7,0.164]
[1752610175661,0.04,3040.9,3040.7,0.164]
[1752610176781,0.04,3040.9,3040.8,3.28860826]
[1752610177433,0.8248,3040.9,3040.7,1.04118441]
[1752610177635,3.0,3040.7,3039.6,0.25042625]
[1752610177950,3.28932273,3040.2,3039.6,8.60785188]
[1752610178150,3.2893658,3040.1,3039.6,8.60785188]
[1752610178356,3.28974615,3039.8,3038.8,3.29069628]
[1752610178553,3.28990656,3039.6,3038.7,1.0901]
[1752610178895,3.28990656,3039.6,3038.5,0.002]
[1752610178896,0.7777,3039.3,3038.6,5.318]
[1752610179179,3.29064456,3039.0,3038.6,5.318]
[1752610179385,3.29067245,3038.9,3038.6,5.318]
[1752610179591,3.29067245,3038.9,3038.5,0.002]
[1752610179592,3.29098927,3038.6,3038.5,0.002]
[1752610179753,6.29098927,3038.6,3038.5,0.002]
[1752610180070,3.7777,3038.6,3038.5,0.002]
[1752610180277,3.0,3038.6,3038.5,0.002]
[1752610180637,0.7777,3038.9,3038.5,0.002]
[1752610180833,0.7777,3039.2,3038.5,0.002]
[1752610181387,3.0,3039.1,3038.5,0.002]
[1752610181602,1.2422,3039.2,3038.5,0.002]
[1752610181800,3.0,3039.5,3038.8,3.29069836]
[1752610181999,3.0,3039.5,3038.8,4.48065775]
[1752610182200,1.2422,3039.6,3038.8,1.18995939]
[1752610182387,1.2422,3039.6,3038.6,5.318]
[1752610182592,3.0,3039.5,3038.9,3.29058554]
[1752610183508,1.2422,3039.6,3039.0,5.318]
[1752610183666,4.2422,3039.6,3039.1,3.29044782]
[1752610184304,4.53212395,3039.6,3039.0,8.60851863]
[1752610184614,3.0,3039.5,3039.0,8.60851863]
[1752610184899,3.0,3039.5,3039.0,9.7984453]
[1752610185227,3.0,3039.5,3039.0,9.7984614]
[1752610185604,0.467,3039.4,3039.0,5.318]
[1752610185768,4.09250522,3039.2,3038.5,0.002]
[1752610185971,3.8021,3039.2,3038.7,3.2908269]
[1752610186323,3.0,3039.1,3038.6,3.2909638]
[1752610186496,3.0,3039.1,3038.6,1.19021436]
[1752610186497,3.29045212,3039.1,3038.6,1.19021436]
[1752610186698,3.0,3039.1,3038.7,3.2908638]
[1752610186896,3.0,3039.1,3038.6,4.48114254]
[1752610187512,0.467,3039.0,3038.5,0.002]
[1752610187815,0.467,3039.0,3038.7,0.164]
[1752610187816,0.50813195,3039.0,3038.7,0.164]
[1752610187965,0.50813195,3039.0,3038.5,0.002]
[1752610187966,6.7575561,3039.0,3038.9,0.164]
[1752610189704,3.7575561,3039.0,3038.9,0.164]
[1752610189909,3.0,3038.6,3038.5,0.002]
[1752610190106,3.0,3038.6,3038.5,0.166]
[1752610190506,6.29098927,3038.6,3038.5,0.166]
[1752610190708,6.75798927,3038.6,3038.5,0.166]
[1752610190913,3.0,3038.6,3038.5,0.166]
[1752610191885,3.0,3038.6,3038.5,3.45709758]
[1752610192088,3.0,3038.6,3038.5,4.13193629]
[1752610192294,0.467,3039.1,3038.5,4.13193629]
[1752610192536,0.467,3039.1,3038.5,0.84083871]
[1752610192686,3.29084526,3038.8,3038.6,5.317]
[1752610192884,0.0411333,3038.9,3038.6,5.481]
[1752610193123,0.8021,3039.2,3038.6,0.464]
[1752610193328,1.2187,3039.5,3039.1,0.164]
[1752610193483,1.2187,3039.5,3038.6,0.464]
[1752610193484,3.79827205,3039.4,3038.5,0.002]
[1752610193684,3.45499721,3039.3,3038.9,5.481]
[1752610193879,3.2905561,3039.0,3038.9,5.481]
[1752610194129,3.79868805,3039.0,3038.9,0.164]
[1752610194298,6.79868805,3039.0,3038.9,0.164]
[1752610194621,3.29072732,3038.9,3038.7,0.164]
[1752610194799,3.75772732,3038.9,3038.7,0.164]
[1752610195245,4.58187267,3038.8,3038.7,0.164]
[1752610196184,3.29098927,3038.6,3038.5,0.002]
[1752610196386,15.51620852,3038.6,3038.5,0.002]
[1752610196600,15.94207116,3038.6,3038.5,0.002]
[1752610197196,7.58208927,3038.6,3038.5,0.002]
[1752610197402,3.0,3038.6,3038.5,0.002]
[1752610197636,6.79912663,3038.6,3038.5,0.002]
[1752610197851,7.58208927,3038.6,3038.5,0.002]
[1752610197999,8.59109255,3038.6,3038.5,0.002]
[1752610199439,3.8241,3038.6,3038.5,0.002]
[1752610199616,3.0,3038.6,3038.5,0.166]
[1752610200201,3.0,3038.6,3038.5,3.45709758]
[1752610200402,0.04112924,3039.2,3038.6,3.29097761]
[1752610200628,0.7502,3039.3,3038.9,0.164]
[1752610200966,3.7502,3039.3,3038.9,0.164]
[1752610201112,3.28992786,3039.6,3038.9,3.63613072]
[1752610201305,0.7831,3039.7,3039.2,0.164]
[1752610201507,3.28950371,3040.0,3039.5,0.164]
[1752610201814,3.0,3039.8,3039.5,0.164]
[1752610202420,0.467,3040.4,3039.7,3.28973484]
[1752610202659,0.467,3040.4,3039.6,3.75387543]
[1752610202660,3.0,3040.1,3039.6,3.75387543]
[1752610203001,3.0,3040.2,3039.7,3.28975309]
[1752610203203,3.04111436,3040.3,3039.8,3.28966047]
[1752610203403,0.8203,3040.5,3040.1,3.28930696]
[1752610203650,3.75581164,3040.7,3040.1,3.28930696]
[1752610203651,0.467,3040.7,3040.2,3.28925728]
[1752610203837,3.28860983,3040.8,3040.2,3.28925728]
[1752610204029,3.0,3040.7,3040.2,3.28925728]
[1752610204238,3.0411076,3040.8,3040.1,5.315]
[1752610204449,3.28883956,3040.6,3040.1,5.315]
[1752610204658,3.28876158,3040.7,3040.2,3.28924863]
[1752610204808,3.28876158,3040.7,3040.1,9.4647684]
[1752610205143,3.28933438,3040.2,3039.6,0.25167419]
[1752610205345,3.28933438,3040.2,3039.7,5.315]
[1752610205643,0.467,3040.2,3039.7,5.315]
[1752610206239,0.467,3040.2,3039.7,8.60472914]
[1752610206540,3.28917958,3040.3,3039.7,8.60472914]
[1752610206843,3.0,3040.7,3039.7,6.96847176]
[1752610207008,0.0411076,3040.8,3040.0,3.28941927]
[1752610207208,3.28889015,3040.6,3040.0,3.28941927]
[1752610207611,3.28889015,3040.6,3039.8,3.75369011]
[1752610207612,6.28876715,3040.7,3040.1,3.28926263]
[1752610207810,3.288881,3040.6,3040.2,5.313]
[1752610208109,3.0,3040.4,3040.2,5.313]
[1752610208717,3.0,3040.5,3040.2,5.313]
[1752610208918,6.28891992,3040.6,3040.2,5.313]
[1752610209220,3.0,3040.7,3040.2,5.313]
[1752610209422,0.798,3040.9,3040.2,6.63724569]
[1752610209750,6.28862708,3040.8,3040.2,6.63724569]
[1752610210048,0.041,3040.9,3040.2,6.63724569]
[1752610210238,0.041,3040.9,3040.6,3.28878336]
[1752610210433,0.041,3040.9,3040.3,0.464]
[1752610210621,0.041,3040.9,3040.8,3.28860826]
[1752610210826,0.041,3040.9,3040.8,3.75260826]
[1752610211345,0.041,3040.9,3040.8,3.28860826]
[1752610211534,0.041,3040.9,3040.4,0.66372457]
[1752610211738,0.041,3040.9,3040.5,5.312]
[1752610211919,0.041,3040.9,3040.6,5.312]
[1752610212119,3.3295439,3040.9,3040.6,5.312]
[1752610212331,0.041,3040.9,3040.6,5.312]
[1752610212651,3.32953578,3040.9,3040.8,0.164]
[1752610212951,0.041,3040.9,3040.8,0.164]
[1752610213710,0.041,3040.9,3040.8,0.7116]
[1752610214555,0.041,3040.9,3040.8,4.46420826]
[1752610216244,0.041,3040.9,3040.8,9.77320826]
[1752610216617,0.041,3040.9,3040.8,4.46420826]
[1752610216818,0.041,3040.9,3040.8,0.7116]
[1752610217133,0.041,3040.9,3040.8,9.30920826]
[1752610217318,0.041,3040.9,3040.8,8.76160826]
[1752610218817,7.53022504,3040.9,3040.4,5.309]
[1752610219020,3.041,3040.9,3040.4,9.05708543]
[1752610219225,3.041,3040.9,3040.5,0.90570854]
[1752610219423,6.32950015,3040.9,3040.5,0.90570854]
[1752610219844,3.28876957,3040.7,3039.6,3.5407581]
[1752610220050,3.28860826,3040.8,3040.2,3.28918487]
[1752610220329,6.75899182,3040.9,3040.3,5.308]
[1752610220663,3.041,3040.9,3040.3,5.7671]
[1752610220826,3.041,3040.9,3040.3,5.308]
[1752610221027,3.041,3040.9,3040.3,5.8388]
[1752610221231,3.041,3040.9,3040.4,3.28893622]
[1752610221232,0.041,3040.9,3040.4,3.28893622]
[1752610221541,0.041,3040.9,3040.5,3.28892008]
[1752610221741,0.041,3040.9,3040.6,8.59582156]
[1752610221961,0.041,3040.9,3040.7,5.307]
[1752610222163,0.041,3040.9,3040.8,0.8595778]
[1752610222829,0.041,3040.9,3040.8,6.1665778]
[1752610223871,0.041,3040.9,3039.7,3.28979833]
[1752610224163,0.7883,3040.6,3039.6,0.25093991]
[1752610224349,3.28921429,3040.3,3039.8,5.306]
[1752610224554,3.28872009,3040.7,3040.1,3.28930562]
[1752610224863,3.0,3040.6,3040.2,8.92416066]
[1752610225028,0.041,3040.9,3040.5,3.28891186]
[1752610225228,0.041,3040.9,3040.6,5.306]
[1752610225428,3.041,3040.9,3040.6,5.306]
[1752610225667,0.041,3040.9,3040.6,5.306]
[1752610225866,3.0,3040.8,3040.6,5.306]
[1752610226526,3.28861126,3040.8,3040.6,5.306]
[1752610226731,3.041,3040.9,3040.6,5.306]
[1752610226943,0.041,3040.9,3040.8,3.28860826]
[1752610227645,0.041,3040.9,3040.8,3.74770826]
[1752610228838,0.041,3040.9,3040.8,3.91170826]
[1752610231154,0.041,3040.9,3040.8,4.1600232]
[1752610231355,0.041,3040.9,3040.8,5.956557]
[1752610231851,0.041,3040.9,3040.8,1.9605338]
[1752610232052,0.041,3040.9,3040.8,5.468]
[1752610232371,0.041,3040.9,3040.8,8.75660826]
[1752610232574,0.041,3040.9,3040.8,8.99993715]
[1752610232774,0.041,3040.9,3040.8,9.45903715]
[1752610235447,0.041,3040.9,3040.8,10.00903715]
[1752610235671,0.041,3040.9,3040.8,11.33881235]
[1752610236343,1e-08,3040.9,3040.8,11.33881235]
[1752610239258,0.001,3041.6,3041.5,3.28785138]
[1752610239582,0.04,3041.9,3041.8,3.28752712]
[1752610239882,0.04,3041.9,3041.8,8.58852712]
[1752610240091,0.04,3041.9,3041.8,11.05015335]
[1752610240461,0.001,3042.2,3042.1,3.28720291]
[1752610240667,0.001,3042.2,3042.1,8.58820291]
[1752610240854,0.001,3042.2,3042.1,8.75220291]
[1752610241051,0.001,3042.2,3042.1,9.21130291]
[1752610241245,0.001,3042.2,3042.1,10.46116409]
[1752610241596,0.001,3042.2,3042.1,11.01116409]
[1752610242993,0.001,3042.4,3042.3,3.83698681]
[1752610243300,0.001,3042.4,3042.3,9.29998681]
[1752610243478,0.001,3042.4,3042.3,10.72959096]
[1752610243680,0.001,3042.4,3042.3,5.88969096]
[1752610243890,0.001,3042.4,3042.3,0.164]
[1752610244073,0.001,3042.4,3042.3,5.462]
[1752610244275,0.4304,3042.4,3042.3,5.462]
[1752610244492,3.71727877,3042.4,3042.3,0.164]
[1752610244695,4.52917877,3042.4,3042.3,0.164]
[1752610244880,3.28711255,3042.2,3042.1,5.298]
[1752610245096,3.71651255,3042.2,3042.1,5.462]
[1752610245604,4.88137366,3042.4,3042.1,5.462]
[1752610245605,0.8129,3042.4,3042.1,5.462]
[1752610245807,0.8129,3042.4,3042.3,0.164]
[1752610246006,1.2702,3042.4,3042.3,5.462]
[1752610248929,7.55707877,3042.4,3042.3,0.164]
[1752610249209,5.35458506,3042.4,3042.3,5.46]
[1752610249371,4.2702,3042.4,3042.3,5.46]
[1752610249572,7.55707877,3042.4,3042.3,5.46]
[1752610249772,7.55707877,3042.4,3042.3,0.164]
[1752610250392,4.2702,3042.4,3042.3,0.164]
[1752610250787,0.001,3042.4,3042.3,3.99698681]
[1752610251585,0.001,3042.4,3042.3,4.43898681]
[1752610252405,0.001,3042.4,3042.3,9.73398681]
[1752610254698,0.001,3042.4,3042.3,10.28398681]
[1752610255415,1e-08,3042.4,3042.3,10.28398681]
[1752610255829,1e-08,3042.4,3042.3,12.25998681]
[1752610256181,0.04,3042.9,3042.8,3.83644669]
[1752610256406,0.04,3042.9,3042.8,10.00574656]
[1752610256710,0.04,3042.9,3042.8,10.44774656]
[1752610256920,0.4573,3044.1,3043.7,3.28538091]
[1752610257102,0.4573,3044.1,3043.8,8.57836697]
[1752610257283,0.4573,3044.1,3043.8,10.18055667]
[1752610257483,0.4573,3044.1,3043.8,6.8951897]
[1752610257683,3.28483613,3044.3,3043.8,1.35038387]
[1752610257888,0.4973,3043.9,3043.8,5.456]
[1752610258421,0.4973,3043.9,3043.8,0.164]
[1752610258422,3.78255904,3043.9,3043.8,0.164]
[1752610258595,4.60315904,3043.9,3043.8,5.456]
[1752610258800,7.64422477,3043.9,3043.8,0.164]
[1752610259141,0.4573,3043.9,3043.8,5.292]
[1752610259682,0.4573,3043.9,3043.8,8.57736697]
[1752610259937,0.4573,3043.9,3043.8,6.47829388]
[1752610260240,0.7745,3044.3,3044.1,3.28499858]
[1752610260385,0.001,3044.4,3044.2,5.32384935]
[1752610260723,0.001,3044.4,3044.3,3.28482738]
[1752610260924,0.001,3044.4,3044.3,4.47418857]
[1752610261300,0.04,3044.9,3044.8,3.28428796]
[1752610261501,0.04,3044.9,3044.8,8.57428796]
[1752610262510,0.04,3044.9,3044.8,9.01628796]
[1752610263104,0.4573,3045.8,3045.7,3.28331746]
[1752610263299,0.8191,3045.9,3045.8,3.28320966]
[1752610263505,1.2764,3045.9,3045.6,5.29]
[1752610263702,0.4573,3045.8,3045.7,3.28330596]
[1752610263908,0.4573,3045.8,3045.6,8.5733788]
[1752610264112,0.4573,3045.8,3045.7,3.28331746]
[1752610264317,0.8191,3045.9,3045.6,5.53687277]
[1752610264519,0.04,3045.9,3045.7,3.28331746]
[1752610264721,0.4573,3045.8,3045.2,3.28377729]
[1752610264900,0.4573,3045.8,3045.3,8.60557593]
[1752610265105,1.2364,3045.7,3044.9,4.18578023]
[1752610265303,0.04,3045.9,3045.4,3.2835346]
[1752610265624,0.04,3045.9,3045.7,3.28321256]
[1752610265826,0.04,3045.9,3045.8,5.288]
[1752610265992,0.04,3045.9,3044.5,3.0]
[1752610266199,3.32317809,3045.9,3045.3,3.28367309]
[1752610266394,0.04,3045.9,3045.4,5.288]
[1752610266702,0.04,3045.9,3045.5,5.288]
[1752610266906,0.4973,3045.9,3045.6,3.31616746]
[1752610267129,0.4973,3045.9,3045.7,3.28331704]
[1752610267303,0.04,3045.9,3045.8,8.60304175]
[1752610267502,0.04,3045.9,3045.8,8.57020966]
[1752610268027,0.04,3045.9,3045.8,9.56220966]
[1752610268831,0.04,3045.9,3045.8,8.57020966]
[1752610269009,0.04,3045.9,3045.8,9.17620966]
[1752610269189,0.04,3045.9,3045.8,11.0934631]
[1752610269395,1e-08,3045.9,3045.8,11.0934631]
[1752610270223,1e-08,3045.9,3045.8,5.3644631]
[1752610270394,1e-08,3045.9,3045.8,10.13329519]
[1752610270727,1e-08,3045.9,3045.8,1.53125344]
[1752610270906,1e-08,3045.9,3045.8,5.45]
[1752610271246,1e-08,3045.9,3045.8,8.73320966]
[1752610272044,1e-08,3045.9,3045.8,9.72520966]
[1752610272344,0.04,3046.9,3046.8,3.28213207]
[1752610272542,0.04,3046.9,3046.8,8.59995339]
[1752610272697,0.04,3046.9,3046.8,9.91935116]
[1752610273200,0.04,3047.9,3047.1,3.28180893]
[1752610273431,3.77833523,3047.9,3047.8,0.164]
[1752610273630,1.2837,3047.9,3047.8,5.449]
[1752610273836,1.2837,3047.9,3047.8,0.164]
[1752610274050,1.2837,3047.9,3047.6,5.285]
[1752610274349,6.77947195,3047.8,3047.7,0.164]
[1752610274649,3.28125188,3047.7,3047.6,5.285]
[1752610274830,0.4573,3047.7,3047.5,5.449]
[1752610275025,7.06749695,3047.8,3047.5,5.449]
[1752610275213,0.4573,3047.6,3047.5,5.449]
[1752610275427,0.4573,3047.6,3046.8,9.32572927]
[1752610275428,3.0,3047.4,3047.1,5.285]
[1752610275625,7.55091345,3047.3,3047.2,0.164]
[1752610275815,7.55091345,3047.3,3046.8,0.164]
[1752610275816,0.7864,3046.9,3046.8,0.164]
[1752610276217,4.51032435,3046.9,3046.8,0.164]
[1752610276641,7.51032435,3046.9,3046.6,5.283]
[1752610276842,3.28236922,3046.6,3046.5,0.164]
[1752610277245,3.72426922,3046.6,3046.5,0.164]
[1752610277622,0.4419,3046.6,3046.5,0.164]
[1752610278117,4.59357687,3046.6,3046.5,0.164]
[1752610278520,4.59357687,3046.6,3045.7,7.885]
[1752610278521,3.0,3046.4,3046.2,0.164]
[1752610278716,7.15200416,3046.3,3046.2,0.164]
[1752610278966,7.55287078,3046.3,3046.2,0.164]
[1752610279166,3.28289191,3046.1,3045.9,5.283]
[1752610279371,3.0,3046.1,3046.0,0.164]
[1752610280048,3.4419,3046.1,3046.0,0.164]
[1752610280459,0.86933473,3046.2,3046.0,0.164]
[1752610280649,1.2142,3046.6,3046.0,0.57752994]
[1752610280858,1.2142,3046.6,3046.1,0.19682886]
[1752610281027,1.2142,3046.6,3046.5,0.164]
[1752610281233,1.2142,3046.6,3046.5,5.447]
[1752610281528,0.4419,3047.0,3046.6,3.28230508]
[1752610281775,0.164,3047.3,3046.8,0.164]
[1752610281946,0.164,3047.3,3046.9,5.283]
[1752610282132,0.4419,3047.2,3046.9,5.283]
[1752610282331,0.4419,3047.2,3047.0,3.2819162]
[1752610282551,0.4419,3047.2,3047.1,0.164]
[1752610284058,0.7723,3047.4,3047.2,3.2816825]
[1752610284267,0.001,3047.5,3047.3,8.56459354]
[1752610284426,0.001,3047.5,3047.4,3.28148585]
[1752610284828,0.001,3047.5,3047.4,3.3143007]
[1752610285960,0.001,3048.3,3048.2,3.28062463]
[1752610286158,0.001,3048.3,3048.2,9.21876068]
[1752610286547,0.001,3048.3,3048.2,9.65086068]
[1752610287157,0.04,3048.9,3048.8,3.279979]
[1752610287373,0.04,3048.9,3048.8,8.567979]
[1752610288259,0.04,3048.9,3048.8,9.000079]
[1752610288461,0.04,3048.9,3048.8,10.12400491]
[1752610288980,0.04,3048.9,3048.8,8.567979]
[1752610290641,0.04,3048.9,3048.8,9.000079]
[1752610290958,0.04,3048.9,3048.8,9.550079]
[1752610292153,0.04,3048.9,3048.8,8.567979]
[1752610294193,0.04,3048.9,3048.8,9.550079]
[1752610294401,0.04,3048.9,3048.8,11.1611043]
[1752610294964,0.001,3049.6,3048.8,11.1611043]
[1752610294965,0.001,3049.6,3049.5,3.2792261]
[1752610295197,0.001,3049.6,3049.5,8.59101836]
[1752610295393,0.001,3049.6,3049.5,8.5582261]
[1752610295876,0.001,3049.6,3049.5,8.7214261]
[1752610296076,0.001,3049.6,3049.5,9.92150191]
[1752610297201,0.001,3049.6,3049.5,4.88785235]
[1752610297402,0.001,3049.6,3049.5,5.68655044]
[1752610297564,0.4429,3049.6,3049.5,0.1632]
[1752610297914,0.4429,3049.6,3049.5,5.4412]
[1752610298969,1.2706,3049.6,3049.5,5.4412]
[1752610300811,1.2706,3049.6,3049.5,5.4402]
[1752610301703,0.8287,3049.6,3049.5,8.7194261]
[1752610301904,0.8287,3049.6,3049.5,9.91930161]
[1752610302079,0.001,3049.6,3049.5,9.91930161]
[1752610302501,0.4429,3049.6,3049.5,0.1632]
[1752610302681,0.4429,3049.6,3049.5,5.4402]
[1752610303822,0.001,3049.6,3049.5,5.4402]
[1752610304818,3.28011857,3049.6,3049.5,5.4402]
[1752610305115,3.27957817,3049.2,3049.1,5.277]
[1752610305320,0.4733,3049.2,3049.1,5.277]
[1752610305518,0.4733,3049.2,3049.1,0.1632]
[1752610305693,0.4733,3049.2,3048.8,5.277]
[1752610305694,3.27997091,3048.9,3048.8,5.277]
[1752610305894,3.279979,3048.8,3048.7,0.164]
[1752610306218,4.59977873,3048.8,3048.7,0.164]
[1752610306521,3.28040928,3048.5,3048.4,0.164]
[1752610306818,3.32141305,3048.5,3048.4,0.164]
[1752610306990,7.60021305,3048.5,3048.4,0.164]
[1752610307320,7.55920928,3048.5,3048.4,0.164]
[1752610308315,3.28053198,3048.3,3048.1,0.164]
[1752610309091,0.4733,3048.2,3048.1,0.164]
[1752610309814,1.2241,3048.2,3048.1,0.164]
[1752610310020,4.50472463,3048.2,3048.1,0.164]
[1752610310515,1.2241,3048.2,3048.1,0.164]
[1752610310888,4.50472463,3048.2,3048.1,0.164]
[1752610311234,3.28139465,3047.5,3047.1,0.04]
[1752610311401,0.7508,3047.4,3047.1,0.04]
[1752610311734,0.79181857,3047.4,3047.1,0.04]
[1752610311899,0.79181857,3047.4,3047.3,0.164]
[1752610312108,4.03228585,3047.4,3047.3,0.164]
[1752610312435,2.30058683,3047.4,3047.3,0.164]
[1752610312615,4.26511857,3047.4,3047.1,0.204]
[1752610312787,6.28170123,3047.2,3047.1,0.204]
[1752610312986,6.32272249,3047.2,3047.1,0.04]
[1752610313282,7.60282249,3047.2,3047.1,0.04]
[1752610313494,7.56180123,3047.2,3047.1,0.04]
[1752610314312,4.4441,3047.2,3047.1,0.04]
[1752610314513,4.32112126,3047.2,3047.1,0.04]
[1752610315687,7.60282249,3047.2,3047.1,0.04]
[1752610315926,7.56180123,3047.2,3047.1,0.04]
[1752610317327,4.2801,3047.2,3047.1,0.04]
[1752610317523,7.60282249,3047.2,3047.1,0.04]
[1752610317716,7.56180123,3047.2,3047.1,0.04]
[1752610317895,4.2801,3047.2,3047.1,0.04]
[1752610318094,4.32112126,3047.2,3047.1,0.04]
[1752610319041,0.4733,3047.4,3047.1,0.04]
[1752610319339,0.7952,3047.7,3047.3,3.28153744]
[1752610319493,0.7952,3047.7,3047.5,0.164]
[1752610319694,1.2685,3047.7,3047.5,0.164]
[1752610319996,0.7952,3047.7,3047.5,0.164]
[1752610320192,0.7952,3047.7,3047.5,3.44527234]
[1752610320493,0.51431184,3047.9,3047.5,3.44527234]
[1752610320697,0.83621049,3048.0,3047.5,3.44527234]
[1752610320901,0.7952,3048.0,3047.6,3.28119496]
[1752610321101,0.7952,3048.0,3047.8,0.164]
[1752610321325,1.4325,3048.3,3047.8,3.44500488]
[1752610321528,3.79501397,3048.2,3047.8,0.164]
[1752610321701,0.0410078,3048.2,3047.8,0.164]
[1752610321904,0.7952,3048.3,3048.1,0.164]
[1752610322121,0.4733,3048.5,3048.1,0.164]
[1752610322437,0.16163774,3049.4,3048.1,0.164]
[1752610322438,0.5133,3049.9,3048.4,3.28033945]
[1752610322635,0.04,3049.9,3049.1,3.27955467]
[1752610322837,0.04,3049.9,3049.2,5.31079548]
[1752610323038,0.04,3049.9,3049.2,8.5903284]
[1752610323208,0.04,3049.9,3049.5,3.2792261]
[1752610323546,0.04,3049.9,3049.5,3.97787262]
[1752610323696,0.04,3049.9,3049.5,5.278]
[1752610324037,0.04,3049.9,3049.5,9.2293448]
[1752610324236,0.04,3049.9,3049.5,9.7793448]
[1752610324612,0.04,3049.9,3049.5,9.2293448]
[1752610325534,0.04,3049.9,3049.5,8.8014448]
[1752610325733,0.04,3049.9,3049.5,8.5572261]
[1752610325939,0.04,3049.9,3049.5,5.278]
[1752610326115,0.778,3049.8,3049.5,3.2792261]
[1752610326312,0.778,3049.8,3049.4,5.277]
[1752610326519,0.4743,3049.6,3049.4,5.277]
[1752610326739,0.001,3049.6,3049.4,8.55632179]
[1752610326918,0.001,3049.6,3049.5,3.2792261]
[1752610327249,0.001,3049.6,3049.4,5.277]
[1752610327450,0.001,3049.6,3049.4,8.55632206]
[1752610327650,0.001,3049.6,3049.4,5.277]
[1752610328148,0.4743,3049.6,3049.4,5.277]
[1752610330046,0.4733,3049.5,3049.3,5.275]
[1752610330211,0.001,3049.6,3049.3,5.275]
[1752610330852,0.4733,3049.5,3049.3,5.275]
[1752610331558,0.001,3049.6,3049.3,5.275]
[1752610332138,0.4743,3049.6,3049.3,5.275]
[1752610332352,0.4743,3049.6,3049.5,0.1632]
[1752610332852,0.001,3049.6,3049.5,0.1632]
[1752610333620,3.28011857,3049.6,3049.5,0.1632]
[1752610333824,3.75341857,3049.6,3049.5,0.1632]
[1752610334022,0.4743,3049.6,3049.5,0.1632]
[1752610336543,0.4743,3049.6,3049.3,5.4382]
[1752610336856,0.4557,3049.5,3049.3,5.4382]
[1752610337060,0.4557,3049.4,3049.3,0.1632]
[1752610337630,3.73503363,3049.4,3049.3,0.1632]
[1752610337978,3.73503363,3049.4,3048.6,7.879]
[1752610337979,1.23639803,3049.4,3049.1,0.1632]
[1752610338122,3.27991572,3048.9,3048.7,0.164]
[1752610338321,1.2858,3048.8,3048.7,0.164]
[1752610339338,0.8301,3048.8,3048.7,0.164]
[1752610339541,6.1031,3049.1,3048.7,0.164]
[1752610339761,0.4557,3049.0,3048.7,0.164]
[1752610340135,3.73546801,3049.0,3048.7,0.164]
[1752610340559,0.4557,3048.9,3048.7,0.164]
[1752610340761,0.4557,3048.8,3048.7,0.164]
[1752610340959,3.735679,3048.8,3048.7,0.164]
[1752610341667,3.28026703,3048.6,3048.1,5.273]
[1752610341875,3.7359497,3048.6,3048.2,0.164]
[1752610342259,3.73601187,3048.5,3048.2,0.164]
[1752610342774,3.280517,3048.3,3047.5,7.878]
[1752610342991,1.2858,3048.4,3047.5,7.878]
[1752610342992,3.2808456,3048.0,3047.8,5.273]
[1752610343143,3.2808456,3048.0,3047.9,0.164]
[1752610343338,3.7365456,3048.0,3047.9,0.164]